bitfinex-derivatives/quotes_SOLF0:USTF0_20250428
["timestamp","ask_amount","ask_price","bid_price","bid_amount"]
[1745833826460,11.29764275,151.91,151.82,11.29764275]
[1745833826662,5.9641,151.9,151.82,11.29764275]
[1745833826959,11.29764275,151.89,151.8,11.29764275]
[1745833827156,6.5831,151.86,151.83,6.5839]
[1745833827355,11.29764275,151.89,151.8,11.29764275]
[1745833827961,6.5826,151.87,151.84,6.5835]
[1745833828158,11.29764275,151.89,151.84,6.5835]
[1745833828460,11.29764275,151.89,151.8,11.29764275]
[1745833828861,6.5824,151.87,151.84,6.5834]
[1745833829761,11.29764275,151.89,151.84,6.5834]
[1745833829962,11.29764275,151.89,151.83,6.584]
[1745833830164,6.583,151.86,151.78,13.37504275]
[1745833830663,6.583,151.86,151.82,6.5844]
[1745833831064,17.88024275,151.87,151.78,13.37504275]
[1745833831263,11.29764275,151.87,151.82,6.5842]
[1745833831559,6.5829,151.86,151.82,6.5842]
[1745833833162,11.29764275,151.87,151.81,6.5849]
[1745833833767,11.29764275,151.87,151.8,6.5851]
[1745833834570,6.584,151.84,151.81,6.585]
[1745833834957,11.29764275,151.87,151.81,6.585]
[1745833835363,11.29764275,151.87,151.8,6.5853]
[1745833836071,6.5842,151.83,151.8,6.5853]
[1745833836371,6.5842,151.83,151.81,6.585]
[1745833836969,6.5842,151.83,151.8,6.5853]
[1745833837771,6.5842,151.83,151.81,6.585]
[1745833838071,6.5842,151.83,151.78,13.37504275]
[1745833838269,6.5847,151.82,151.79,6.5856]
[1745833839774,6.5847,151.82,151.8,6.5853]
[1745833839973,6.5843,151.83,151.8,6.5853]
[1745833841880,11.29764275,151.83,151.74,11.29764275]
[1745833842478,6.5857,151.8,151.77,6.5865]
[1745833843479,6.5859,151.79,151.77,6.5865]
[1745833843883,6.5859,151.79,151.76,6.587]
[1745833844683,6.5859,151.79,151.77,6.5867]
[1745833846886,6.5857,151.8,151.77,6.5867]
[1745833847989,6.5857,151.8,151.74,11.29764275]
[1745833848587,6.5857,151.8,151.77,6.5865]
[1745833849889,6.5857,151.8,151.78,6.5863]
[1745833851390,6.5848,151.82,151.79,6.5859]
[1745833852491,11.29764275,151.85,151.79,6.5859]
[1745833852791,11.29764275,151.85,151.78,6.5862]
[1745833852986,11.29764275,151.85,151.76,11.29764275]
[1745833853492,6.585,151.82,151.79,6.5858]
[1745833853689,11.29764275,151.85,151.79,6.5858]
[1745833853990,6.5849,151.82,151.79,6.5858]
[1745833856292,6.585,151.81,151.79,6.5858]
[1745833859595,6.5855,151.8,151.78,6.5861]
[1745833860296,11.29764275,151.81,151.73,2.0496]
[1745833860894,6.5865,151.78,151.75,6.5873]
[1745833861094,6.5865,151.78,151.73,2.0496]
[1745833861294,15.26684275,151.83,151.77,6.5867]
[1745833861800,6.5857,151.8,151.77,6.5867]
[1745833862298,15.26684275,151.83,151.76,11.29764275]
[1745833862597,1.9164,151.83,151.76,11.29764275]
[1745833862796,2.0471,151.84,151.76,11.29764275]
[1745833863097,13.35044275,151.87,151.78,11.29764275]
[1745833863498,6.5839,151.84,151.81,6.5847]
[1745833863898,13.35044275,151.87,151.81,6.5847]
[1745833864802,11.29764275,151.85,151.76,1.9836]
[1745833864989,1.9141,151.84,151.76,1.9836]
[1745833865194,1.9141,151.84,151.76,13.28124275]
[1745833865396,6.5848,151.82,151.79,6.5856]
[1745833865698,13.35044275,151.87,151.78,11.29764275]
[1745833866199,6.584,151.84,151.81,6.5847]
[1745833869400,6.584,151.84,151.78,13.35174275]
[1745833870099,6.584,151.84,151.81,6.5846]
[1745833873702,6.5835,151.85,151.78,13.35174275]
[1745833873907,6.5835,151.85,151.82,6.5844]
[1745833874908,6.5838,151.84,151.82,6.5844]
[1745833875513,6.5834,151.85,151.82,6.5844]
[1745833875704,13.35044275,151.87,151.82,6.5844]
[1745833877706,6.5839,151.84,151.82,6.5844]
[1745833878205,6.5839,151.84,151.81,6.5849]
[1745833878607,6.5839,151.84,151.78,13.35174275]
[1745833879507,6.5839,151.84,151.81,6.5846]
[1745833879704,6.5839,151.84,151.78,13.35174275]
[1745833880512,6.5839,151.84,151.81,6.5848]
[1745833880708,6.5835,151.85,151.78,13.35174275]
[1745833881008,6.5835,151.85,151.82,6.5843]
[1745833881409,6.5835,151.85,151.78,13.35174275]
[1745833881811,6.5838,151.84,151.78,13.35174275]
[1745833882011,6.5838,151.84,151.81,6.5847]
[1745833882412,6.5842,151.83,151.81,6.5847]
[1745833882809,6.5842,151.83,151.8,6.5852]
[1745833883012,6.5842,151.83,151.78,13.35174275]
[1745833884812,6.5842,151.83,151.81,6.5849]
[1745833885614,6.5842,151.83,151.8,6.5852]
[1745833885812,6.5848,151.82,151.8,6.5852]
[1745833886210,2.0119,151.86,151.81,6.585]
[1745833886409,6.5841,151.84,151.81,6.585]
[1745833886713,2.0119,151.86,151.81,6.585]
[1745833887414,11.29764275,151.9,151.82,11.29764275]
[1745833888109,11.29764275,151.9,151.84,6.5835]
[1745833888515,6.5831,151.86,151.84,6.5835]
[1745833890115,6.5831,151.86,151.83,6.5839]
[1745833890620,6.5831,151.86,151.84,6.5837]
[1745833891115,6.5831,151.86,151.82,11.29764275]
[1745833892318,6.5826,151.87,151.84,6.5835]
[1745833892715,11.29764275,151.9,151.84,6.5835]
[1745833894320,6.5829,151.86,151.83,6.584]
[1745833894522,11.29764275,151.93,151.84,11.29764275]
[1745833894818,6.5815,151.9,151.86,6.5826]
[1745833895217,6.5815,151.9,151.84,11.29764275]
[1745833895419,6.5808,151.91,151.84,11.29764275]
[1745833896119,11.29764275,151.93,151.84,11.29764275]
[1745833896719,6.5809,151.91,151.84,11.29764275]
[1745833897119,6.5805,151.92,151.89,6.5813]
[1745833897318,11.29764275,151.93,151.84,11.29764275]
[1745833897719,6.5809,151.91,151.84,11.29764275]
[1745833898422,6.5809,151.91,151.88,6.5818]
[1745833898622,6.5812,151.9,151.88,6.5818]
[1745833899017,6.5812,151.9,151.87,6.5822]
[1745833899320,6.5812,151.9,151.84,11.29764275]
[1745833900222,6.5812,151.9,151.88,6.5819]
[1745833900522,6.5809,151.91,151.88,6.5819]
[1745833900722,11.29764275,151.93,151.88,6.5819]
[1745833901119,6.5809,151.91,151.88,6.5819]
[1745833901421,6.5809,151.91,151.89,6.5815]
[1745833902122,6.5809,151.91,151.88,6.5818]
[1745833902727,6.5809,151.91,151.89,6.5814]
[1745833903022,6.5805,151.92,151.89,6.5814]
[1745833904322,11.29764275,151.93,151.88,6.5818]
[1745833904523,11.29764275,151.89,151.77,13.1734]
[1745833904729,11.29764275,151.87,151.77,5.9815]
[1745833904918,11.29764275,151.87,151.77,17.27914275]
[1745833905125,11.29764275,151.83,151.72,392.18132244]
[1745833905323,11.29764275,151.83,151.73,15.36434275]
[1745833905521,11.29764275,151.85,151.75,11.29764275]
[1745833905722,6.5843,151.83,151.75,11.29764275]
[1745833906021,11.29764275,151.85,151.78,6.5861]
[1745833906422,6.5848,151.82,151.78,6.5861]
[1745833906825,11.29764275,151.85,151.77,11.29764275]
[1745833907025,3.8462,151.86,151.77,11.29764275]
[1745833908025,6.584,151.84,151.8,6.5854]
[1745833908320,3.8462,151.86,151.77,11.29764275]
[1745833908527,11.29764275,151.85,151.77,11.29764275]
[1745833909024,23.6462,151.86,151.75,11.29764275]
[1745833909226,11.29764275,151.83,151.73,21.09587336]
[1745833909427,11.29764275,151.81,151.73,21.09587336]
[1745833910028,11.29764275,151.81,151.73,9.79823061]
[1745833910229,11.29764275,151.79,151.73,9.79823061]
[1745833910430,11.29764275,151.81,151.73,9.79823061]
[1745833911230,11.29764275,151.81,151.73,21.09587336]
[1745833911731,11.29764275,151.83,151.75,11.29764275]
[1745833912326,6.5857,151.8,151.76,6.5868]
[1745833912835,11.29764275,151.83,151.76,6.5868]
[1745833913733,6.5857,151.8,151.76,6.5868]
[1745833914135,11.29764275,151.85,151.75,11.29764275]
[1745833914333,6.5851,151.81,151.77,11.29764275]
[1745833914632,3.8462,151.86,151.77,11.29764275]
[1745833915035,1.9808,151.88,151.81,11.29764275]
[1745833915232,11.29764275,151.91,151.81,11.29764275]
[1745833915434,11.29764275,151.91,151.81,17.88224275]
[1745833915637,11.29764275,151.91,151.81,11.29764275]
[1745833915933,6.5827,151.87,151.83,11.29764275]
[1745833916536,6.583,151.86,151.83,11.29764275]
[1745833917332,6.5826,151.87,151.83,11.29764275]
[1745833917535,6.5826,151.87,151.83,17.88174275]
[1745833917935,6.5826,151.87,151.83,11.29764275]
[1745833918333,11.29764275,151.91,151.83,11.29764275]
[1745833918534,11.29764275,151.91,151.81,11.29764275]
[1745833918833,6.5834,151.85,151.81,11.29764275]
[1745833920241,6.5834,151.85,151.81,17.88254275]
[1745833920841,6.5831,151.86,151.82,6.5846]
[1745833921540,6.5834,151.85,151.81,17.88254275]
[1745833922543,6.5837,151.84,151.81,11.29764275]
[1745833923042,6.5844,151.83,151.79,19.90514275]
[1745833923242,11.29764275,151.87,151.79,19.90514275]
[1745833923444,11.29764275,151.87,151.79,13.31954275]
[1745833923742,11.29764275,151.89,151.81,11.29764275]
[1745833924050,6.5836,151.85,151.81,17.88244275]
[1745833925342,6.583,151.86,151.82,6.5846]
[1745833925544,11.29764275,151.91,151.83,11.29764275]
[1745833925842,6.5825,151.87,151.83,17.88154275]
[1745833926239,11.29764275,151.91,151.83,17.88154275]
[1745833926445,6.5831,151.86,151.83,11.29764275]
[1745833926744,11.29764275,151.91,151.83,11.29764275]
[1745833926946,1.8936,151.92,151.85,11.29764275]
[1745833927246,11.29764275,151.93,151.85,11.29764275]
[1745833927451,11.29764275,151.93,151.86,6.5827]
[1745833927846,11.29764275,151.93,151.85,11.29764275]
[1745833928144,11.29764275,151.93,151.83,11.29764275]
[1745833928443,1.9788,151.94,151.83,11.29764275]
[1745833928444,11.29764275,151.91,151.83,11.29764275]
[1745833928641,6.5825,151.87,151.83,11.29764275]
[1745833928841,11.29764275,151.91,151.81,11.29764275]
[1745833929146,11.29764275,151.91,151.82,6.5842]
[1745833929642,6.5828,151.87,151.82,6.5842]
[1745833929844,11.29764275,151.91,151.83,6.584]
[1745833930146,6.583,151.86,151.83,6.584]
[1745833931245,6.5826,151.87,151.84,6.5837]
[1745833932944,6.5829,151.86,151.83,6.5839]
[1745833933145,6.5829,151.86,151.81,11.29764275]
[1745833933444,6.5829,151.86,151.83,6.5839]
[1745833933647,11.29764275,151.89,151.81,11.29764275]
[1745833934041,11.29764275,151.89,151.83,6.5839]
[1745833934042,6.583,151.86,151.83,6.5839]
[1745833934446,11.29764275,151.89,151.79,2.0219]
[1745833934641,6.5843,151.83,151.8,6.5851]
[1745833934838,11.29764275,151.83,151.7,7.79533061]
[1745833935043,11.29764275,151.83,151.72,15.18774275]
[1745833935348,6.5856,151.8,151.74,11.29764275]
[1745833935645,6.5856,151.8,151.76,6.5868]
[1745833936044,6.5852,151.81,151.76,6.5868]
[1745833936246,6.5852,151.81,151.77,6.5866]
[1745833937648,6.5852,151.81,151.78,6.5862]
[1745833940151,6.1769,151.86,151.77,18.04793929]
[1745833940551,6.5835,151.85,151.77,18.04793929]
[1745833940853,6.5835,151.85,151.81,6.5847]
[1745833942352,6.5837,151.84,151.81,6.5847]
[1745833949661,6.5835,151.85,151.78,3.8662]
[1745833949861,2.0664,151.86,151.78,3.8662]
[1745833950163,6.584,151.84,151.81,6.5848]
[1745833950865,2.0664,151.86,151.78,3.8662]
[1745833951061,2.0664,151.86,151.77,18.04793929]
[1745833951263,20.11433929,151.86,151.74,18.04793929]
[1745833951562,39.91433929,151.86,151.74,18.04793929]
[1745833951864,3.9931,151.85,151.74,18.04793929]
[1745833952063,6.5855,151.8,151.77,6.5866]
[1745833952660,6.5859,151.79,151.77,6.5866]
[1745833953768,6.5857,151.8,151.77,6.5866]
[1745833954260,6.5859,151.79,151.77,6.5866]
[1745833954966,6.5857,151.8,151.77,6.5866]
[1745833956670,3.9931,151.85,151.74,18.04793929]
[1745833957567,6.5848,151.82,151.79,6.5858]
[1745833960371,6.5848,151.82,151.78,6.5861]
[1745833961673,6.5851,151.81,151.78,6.5861]
[1745833962867,6.5848,151.82,151.77,11.27698748]
[1745833963072,2.0664,151.86,151.79,11.27698748]
[1745833964071,6.5838,151.84,151.81,6.5848]
[1745833964672,6.5835,151.85,151.82,6.5846]
[1745833965670,6.5838,151.84,151.81,6.5849]
[1745833965873,2.0664,151.86,151.79,11.27698748]
[1745833966877,2.0664,151.86,151.81,6.5847]
[1745833967377,2.0664,151.86,151.81,6.585]
[1745833967378,6.5835,151.85,151.81,6.585]
[1745833967674,6.5835,151.85,151.79,11.27698748]
[1745833968373,6.5835,151.85,151.81,6.5847]
[1745833969477,6.5835,151.85,151.82,6.5845]
[1745833971878,6.5838,151.84,151.81,6.5849]
[1745833972979,6.5835,151.85,151.82,6.5845]
[1745833974679,6.5837,151.84,151.82,6.5845]
[1745833976082,6.5837,151.84,151.81,6.5848]
[1745833980186,6.5837,151.84,151.82,6.5845]
[1745833980989,6.5837,151.84,151.81,6.5848]
[1745833981182,6.5835,151.85,151.79,11.27698748]
[1745833981382,11.27698748,151.9,151.81,11.27698748]
[1745833981583,11.27698748,151.9,151.84,6.5835]
[1745833982489,6.5827,151.87,151.84,6.5835]
[1745833982891,11.27698748,151.9,151.83,6.584]
[1745833983190,6.5831,151.86,151.83,6.584]
[1745833983692,6.5833,151.85,151.82,6.5844]
[1745833984092,11.27698748,151.9,151.81,11.27698748]
[1745833984591,6.5828,151.87,151.83,6.5839]
[1745833985591,6.5828,151.87,151.84,6.5837]
[1745833985889,6.5816,151.89,151.83,11.27698748]
[1745833986091,11.27698748,151.91,151.85,6.583]
[1745833986391,6.5822,151.88,151.85,6.583]
[1745833986794,11.27698748,151.89,151.78,3.818]
[1745833986994,11.27698748,151.86,151.78,1.9306]
[1745833987194,11.27698748,151.84,151.78,1.9306]
[1745833987586,11.27698748,151.84,151.74,11.27698748]
[1745833988089,6.5856,151.8,151.76,6.5868]
[1745833989093,6.5852,151.81,151.77,6.5867]
[1745833989292,6.5852,151.81,151.74,11.27698748]
[1745833989588,11.27698748,151.84,151.76,11.27698748]
[1745833989793,3.8563,151.88,151.79,6.5858]
[1745833989794,6.585,151.82,151.79,6.5858]
[1745833991000,6.5843,151.83,151.79,6.5858]
[1745833992593,6.5849,151.82,151.78,6.5862]
[1745833992896,6.5849,151.82,151.76,11.27698748]
[1745833993697,6.5849,151.82,151.79,6.5858]
[1745833995095,6.5849,151.82,151.78,6.5861]
[1745833996090,6.5855,151.8,151.77,6.5867]
[1745833996297,11.27698748,151.79,151.72,1.9068]
[1745833996700,6.587,151.77,151.73,6.5882]
[1745833997095,11.27698748,151.79,151.73,6.5882]
[1745833997492,11.27698748,151.79,151.74,6.5879]
[1745833998995,6.587,151.77,151.74,6.5879]
[1745833999601,11.27698748,151.79,151.72,1.9068]
[1745833999602,6.5872,151.76,151.72,1.9068]
[1745833999899,6.5872,151.76,151.7,11.27698748]
[1745833999900,11.27698748,151.77,151.69,1.9291]
[1745834000104,11.27698748,151.75,151.67,1.9074]
[1745834000801,6.589,151.72,151.68,6.5903]
[1745834001097,11.27698748,151.75,151.68,6.5903]
[1745834001498,11.27698748,151.75,151.69,6.5901]
[1745834001698,11.27698748,151.77,151.68,11.27698748]
[1745834001997,6.5879,151.75,151.68,11.27698748]
[1745834002500,11.27698748,151.77,151.68,11.27698748]
[1745834002800,6.5882,151.74,151.7,6.5894]
[1745834003099,11.27698748,151.77,151.68,11.27698748]
[1745834003398,11.27698748,151.77,151.71,6.5891]
[1745834003694,6.588,151.75,151.71,6.5891]
[1745834003996,6.588,151.75,151.72,6.5889]
[1745834005498,6.5881,151.74,151.72,6.5889]
[1745834006402,6.5877,151.75,151.72,6.5889]
[1745834007199,6.5877,151.75,151.73,6.5885]
[1745834007898,6.5877,151.75,151.72,6.5887]
[1745834008600,11.27698748,151.77,151.73,6.5884]
[1745834009301,6.5878,151.75,151.73,6.5884]
[1745834010997,6.5878,151.75,151.72,6.5889]
[1745834011799,6.5882,151.74,151.7,6.5894]
[1745834011998,11.27698748,151.75,151.67,13.18438748]
[1745834012399,6.5883,151.74,151.67,13.18438748]
[1745834012602,11.27698748,151.79,151.71,11.27698748]
[1745834012999,6.5871,151.77,151.74,6.5879]
[1745834013199,11.27698748,151.79,151.74,6.5879]
[1745834014309,6.5871,151.77,151.74,6.5879]
[1745834014501,11.27698748,151.79,151.73,6.5883]
[1745834014905,6.5874,151.76,151.73,6.5883]
[1745834015604,6.5874,151.76,151.71,11.27698748]
[1745834015806,6.587,151.77,151.71,11.27698748]
[1745834016912,6.587,151.77,151.74,6.5878]
[1745834017709,365.0,151.82,151.74,11.27698748]
[1745834017911,15.33208748,151.83,151.74,11.27698748]
[1745834018404,11.27698748,151.76,151.69,1.8948]
[1745834018609,11.27698748,151.73,151.62,361.0]
[1745834018801,6.5896,151.71,151.66,6.5913]
[1745834019005,6.5896,151.71,151.64,11.27698748]
[1745834019509,6.5896,151.71,151.66,6.5911]
[1745834019709,6.5896,151.71,151.63,22.08707969]
[1745834020008,6.5896,151.71,151.66,6.5913]
[1745834020507,22.05487969,151.75,151.66,6.5913]
[1745834020711,6.5899,151.7,151.66,6.5913]
[1745834021008,6.5899,151.7,151.67,6.5911]
[1745834022214,6.5895,151.71,151.67,6.5911]
[1745834022816,22.05487969,151.75,151.66,6.5915]
[1745834023011,18.07177969,151.72,151.63,4.0153]
[1745834023410,18.07177969,151.69,151.57,18.07177969]
[1745834023614,1.9436,151.68,151.57,18.07177969]
[1745834024114,6.5921,151.65,151.62,6.5932]
[1745834024510,1.9436,151.68,151.63,6.5925]
[1745834025317,1.9436,151.68,151.57,18.07177969]
[1745834025318,1.9436,151.68,151.62,6.5931]
[1745834025516,1.9436,151.68,151.57,18.07177969]
[1745834025819,6.5918,151.66,151.57,18.07177969]
[1745834026517,1.9436,151.68,151.57,18.07177969]
[1745834027717,6.5912,151.67,151.63,6.5926]
[1745834029917,6.5916,151.66,151.63,6.5926]
[1745834030215,6.5916,151.66,151.57,18.07177969]
[1745834030216,1.9436,151.68,151.61,6.5935]
[1745834030415,6.5923,151.65,151.61,6.5935]
[1745834030813,18.07177969,151.66,151.56,1.9737]
[1745834031010,6.5931,151.63,151.56,1.9737]
[1745834031214,6.5931,151.63,151.59,6.5943]
[1745834031815,6.5926,151.64,151.6,6.594]
[1745834032519,6.593,151.63,151.6,6.594]
[1745834034919,18.07177969,151.66,151.61,6.5936]
[1745834034920,6.5926,151.64,151.61,6.5936]
[1745834035119,6.5926,151.64,151.56,1.9737]
[1745834035619,18.07177969,151.66,151.6,6.5939]
[1745834036723,6.5926,151.64,151.56,1.9737]
[1745834036927,5.7523,151.68,151.57,18.07177969]
[1745834037224,6.592,151.65,151.62,6.5929]
[1745834037927,6.5925,151.64,151.61,6.5935]
[1745834038127,5.7523,151.68,151.57,18.07177969]
[1745834038424,6.5926,151.64,151.6,6.5938]
[1745834038726,6.5926,151.64,151.57,18.07177969]
[1745834039024,6.5926,151.64,151.6,6.5939]
[1745834040016,6.5926,151.64,151.61,6.5936]
[1745834040528,1.9436,151.68,151.6,18.07177969]
[1745834040717,1.992,151.72,151.6,18.07177969]
[1745834040916,6.5904,151.69,151.63,18.07177969]
[1745834041427,6.5899,151.7,151.63,18.07177969]
[1745834041726,6.5899,151.7,151.67,6.5909]
[1745834042126,6.5903,151.69,151.66,6.5912]
[1745834044127,6.59,151.7,151.67,6.5911]
[1745834045128,6.5895,151.71,151.68,6.5907]
[1745834045628,6.5898,151.7,151.67,6.5909]
[1745834046125,6.5898,151.7,151.67,6.5911]
[1745834046330,6.5898,151.7,151.64,11.29495421]
[1745834046724,6.5903,151.69,151.65,6.5917]
[1745834047231,6.5903,151.69,151.64,11.29495421]
[1745834047426,6.5903,151.69,151.65,6.5918]
[1745834047632,6.5903,151.69,151.64,11.29495421]
[1745834048830,6.5903,151.69,151.65,6.5916]
[1745834049031,6.5907,151.68,151.65,6.5916]
[1745834050731,6.5904,151.69,151.66,6.5915]
[1745834051328,6.5907,151.68,151.66,6.5915]
[1745834051530,3.8821,151.75,151.61,4.1131]
[1745834051531,11.29495421,151.71,151.62,11.29495421]
[1745834051931,6.5909,151.68,151.65,6.5919]
[1745834052127,11.29495421,151.71,151.62,11.29495421]
[1745834053234,11.29495421,151.71,151.63,6.5925]
[1745834053432,11.29495421,151.71,151.62,11.29495421]
[1745834054033,6.5913,151.67,151.64,6.5922]
[1745834054333,11.29495421,151.71,151.62,11.29495421]
[1745834054531,11.29495421,151.69,151.61,4.1131]
[1745834055028,11.29495421,151.67,151.61,2.0792]
[1745834055224,11.29495421,151.67,151.58,11.29495421]
[1745834055635,6.5927,151.64,151.6,6.5938]
[1745834055829,11.29495421,151.67,151.58,11.29495421]
[1745834056335,6.5927,151.64,151.6,6.5938]
[1745834056632,6.5927,151.64,151.58,11.29495421]
[1745834056936,6.5927,151.64,151.6,6.5939]
[1745834057137,11.29495421,151.63,151.57,1.9247]
[1745834057336,11.29495421,151.63,151.58,6.595]
[1745834057931,11.29495421,151.65,151.59,6.5945]
[1745834058133,11.29495421,151.65,151.56,11.29495421]
[1745834059035,11.29495421,151.65,151.54,1.9247]
[1745834059036,3.9611,151.66,151.58,11.29495421]
[1745834059440,6.5927,151.64,151.6,6.5939]
[1745834060636,6.5927,151.64,151.61,6.5937]
[1745834060838,1.8861,151.68,151.6,11.29495421]
[1745834061837,1.8861,151.68,151.62,6.5931]
[1745834062238,6.5918,151.66,151.62,6.5931]
[1745834062837,6.5918,151.66,151.63,6.5928]
[1745834065238,6.5911,151.67,151.64,6.5922]
[1745834065637,1.8861,151.68,151.6,11.29495421]
[1745834065837,6.5918,151.66,151.63,6.5927]
[1745834066745,6.5918,151.66,151.64,6.5923]
[1745834066942,6.5913,151.67,151.64,6.5923]
[1745834067242,1.8861,151.68,151.64,6.5923]
[1745834067443,6.5918,151.66,151.63,6.5927]
[1745834068042,1.8861,151.68,151.63,6.5927]
[1745834068643,11.29495421,151.71,151.62,11.29495421]
[1745834069042,11.29495421,151.71,151.61,3.8394]
[1745834069346,6.5916,151.66,151.61,3.8394]
[1745834069544,11.29495421,151.69,151.61,3.8394]
[1745834069744,11.29495421,151.69,151.64,6.5921]
[1745834070146,6.5913,151.67,151.65,6.5919]
[1745834070343,6.5913,151.67,151.61,3.8394]
[1745834070839,6.5913,151.67,151.64,6.5922]
[1745834073852,6.5909,151.68,151.62,11.29495421]
[1745834074051,11.29495421,151.71,151.61,3.8394]
[1745834074248,11.29495421,151.69,151.61,3.8394]
[1745834074752,11.29495421,151.67,151.61,3.8394]
[1745834075250,11.29495421,151.67,151.61,8.5507]
[1745834076157,6.5922,151.65,151.62,6.5933]
[1745834076854,6.5924,151.64,151.61,8.5508]
[1745834077057,6.5924,151.64,151.61,6.5935]
[1745834077353,11.29495421,151.67,151.58,11.29495421]
[1745834077953,6.5928,151.64,151.58,11.29495421]
[1745834079155,6.5928,151.64,151.61,6.5936]
[1745834079654,6.5929,151.63,151.6,6.5939]
[1745834080154,6.5927,151.64,151.58,11.29495421]
[1745834082256,6.5927,151.64,151.6,6.5938]
[1745834083257,6.5927,151.64,151.61,6.5937]
[1745834087855,6.5921,151.65,151.62,6.5932]
[1745834091965,6.5917,151.66,151.63,6.5928]
[1745834092272,6.5917,151.66,151.58,11.29495421]
[1745834092974,6.5917,151.66,151.63,6.5926]
[1745834093376,6.5921,151.65,151.58,11.29495421]
[1745834093578,6.5921,151.65,151.62,6.5931]
[1745834095077,6.5924,151.64,151.62,6.5931]
[1745834095276,6.5924,151.64,151.61,6.5936]
[1745834095476,6.5931,151.63,151.58,11.29495421]
[1745834096076,6.5931,151.63,151.6,6.5939]
[1745834100280,6.5933,151.62,151.59,6.5944]
[1745834100582,11.29495421,151.63,151.56,1.9056]
[1745834100781,11.29495421,151.65,151.56,13.20055421]
[1745834101483,6.5931,151.63,151.56,13.20055421]
[1745834101683,2.0282,151.66,151.6,11.29495421]
[1745834102179,8.6199,151.66,151.63,6.5928]
[1745834102383,2.0282,151.66,151.6,11.29495421]
[1745834102584,11.29495421,151.69,151.6,11.29495421]
[1745834102786,6.5924,151.65,151.6,11.29495421]
[1745834102984,11.29495421,151.69,151.6,11.29495421]
[1745834103383,6.592,151.65,151.62,6.5932]
[1745834103983,11.29495421,151.69,151.6,11.29495421]
[1745834104184,11.29495421,151.69,151.61,6.5935]
[1745834104789,6.5923,151.65,151.62,6.5932]
[1745834104982,6.5923,151.65,151.6,11.29495421]
[1745834105587,6.5923,151.65,151.62,6.5931]
[1745834106691,11.29495421,151.69,151.6,11.29495421]
[1745834106883,11.29495421,151.67,151.58,11.29495421]
[1745834108089,6.5931,151.63,151.6,6.5939]
[1745834109388,6.5934,151.62,151.59,6.5944]
[1745834109589,11.29495421,151.63,151.56,3.8905]
[1745834109888,6.5949,151.59,151.56,6.5957]
[1745834110785,11.29495421,151.63,151.57,6.5954]
[1745834110990,11.29495421,151.63,151.54,11.29495421]
[1745834111294,13.18335421,151.65,151.56,11.29495421]
[1745834112190,6.5944,151.6,151.57,6.5952]
[1745834116695,6.5937,151.62,151.56,11.29495421]
[1745834117387,6.5937,151.61,151.58,6.5948]
[1745834117593,11.29495421,151.63,151.54,11.29495421]
[1745834117896,11.29495421,151.63,151.56,6.5956]
[1745834118195,11.29495421,151.63,151.54,11.29495421]
[1745834118398,6.5944,151.6,151.54,11.29495421]
[1745834118896,6.5944,151.6,151.57,6.5952]
[1745834119092,11.29495421,151.63,151.57,6.5952]
[1745834119294,13.18335421,151.65,151.56,11.29495421]
[1745834119492,13.18335421,151.65,151.59,6.5945]
[1745834119996,6.5935,151.62,151.59,6.5945]
[1745834120896,6.5935,151.62,151.6,6.5941]
[1745834121100,1.8884,151.65,151.6,11.29495421]
[1745834121398,1.8884,151.65,151.58,11.29495421]
[1745834121597,6.5926,151.64,151.61,6.5935]
[1745834122200,6.5929,151.63,151.6,6.594]
[1745834122397,1.8884,151.65,151.58,11.29495421]
[1745834122801,6.5935,151.62,151.59,6.5943]
[1745834123601,6.594,151.61,151.58,6.5948]
[1745834126198,6.594,151.61,151.57,6.5952]
[1745834126404,6.5942,151.6,151.57,6.5952]
[1745834127703,6.5939,151.61,151.58,6.595]
[1745834127903,13.18335421,151.65,151.58,6.595]
[1745834128305,6.594,151.61,151.58,6.595]
[1745834131510,6.5942,151.6,151.57,6.5953]